bitfinex-derivatives/quotes_SOLF0:USTF0_20241217
["timestamp","ask_amount","ask_price","bid_price","bid_amount"]
[1734424152088,7.18278215,217.03,216.99,5.02948777]
[1734424152283,7.18278215,217.03,217.01,2.3038]
[1734424153188,7.18278215,217.03,217.02,2.3038]
[1734424153486,7.18278215,217.03,217.02,7.32836795]
[1734424153685,7.18278215,217.03,217.02,15.3671297]
[1734424153882,7.18278215,217.03,217.02,13.0633297]
[1734424154087,9.48638215,217.05,217.02,13.0633297]
[1734424154290,9.48638215,217.05,217.03,5.02456795]
[1734424154490,2.3036,217.05,217.01,2.3039]
[1734424154685,9.48638215,217.05,217.02,5.02180107]
[1734424154890,9.48638215,217.05,217.03,5.02180107]
[1734424155200,9.48638215,217.05,217.01,2.3039]
[1734424155493,9.48638215,217.05,217.02,5.01974567]
[1734424155690,9.48638215,217.05,217.03,5.01974567]
[1734424155994,9.48638215,217.05,217.01,2.3039]
[1734424156194,9.48638215,217.05,217.0,2.14]
[1734424156195,7.18278215,217.05,217.02,7.32284655]
[1734424156387,7.18278215,217.05,217.03,5.01904655]
[1734424156588,7.18278215,217.05,217.02,2.3038]
[1734424156791,7.18278215,217.05,217.03,5.01667031]
[1734424156992,7.18278215,217.05,217.02,2.3038]
[1734424157192,2.14,217.11,217.03,5.01667512]
[1734424157397,7.18278215,217.06,217.04,5.01667512]
[1734424157595,7.18278215,217.06,217.0,9.32278215]
[1734424157792,7.18278215,217.06,217.02,2.3037]
[1734424158094,7.18278215,217.06,217.03,5.01409322]
[1734424158393,7.18278215,217.06,217.04,5.01394258]
[1734424158596,7.18278215,217.06,217.02,2.3037]
[1734424158894,7.18278215,217.06,217.03,5.01085929]
[1734424159096,7.18278215,217.06,217.02,2.3037]
[1734424159299,7.18278215,217.06,217.03,5.00935738]
[1734424159495,7.18278215,217.06,217.02,2.3037]
[1734424159697,7.18278215,217.06,217.03,5.00940912]
[1734424159898,9.48618215,217.06,217.02,2.3037]
[1734424160098,9.48618215,217.06,217.03,5.00940913]
[1734424160399,9.48618215,217.06,217.02,2.3037]
[1734424161200,7.18278215,217.06,217.0,9.32278215]
[1734424161401,7.18278215,217.06,217.03,2.3036]
[1734424166305,9.48608215,217.06,217.03,2.3036]
[1734424167205,2.3033,217.07,217.03,2.3036]
[1734424168699,9.19189441,217.12,217.02,7.18278215]
[1734424168700,9.48618215,217.06,217.02,9.48648215]
[1734424169100,7.18278215,217.06,217.0,9.32278215]
[1734424169299,9.48638215,217.04,217.01,5.00202139]
[1734424169505,9.19189441,217.12,217.0,2.14]
[1734424169506,7.18278215,217.02,217.0,2.14]
[1734424170009,9.48668215,217.02,217.0,2.14]
[1734424171001,9.48668215,217.02,216.98,2.3041]
[1734424171209,9.48668215,217.02,216.99,5.00549166]
[1734424171405,7.18278215,217.02,216.98,2.14]
[1734424171611,7.18278215,217.0,216.99,5.00561613]
[1734424171909,9.48688215,217.0,216.96,34.86683741]
[1734424172109,9.48688215,217.0,216.97,5.00656596]
[1734424172312,9.48688215,217.0,216.98,5.00656596]
[1734424172506,2.3041,217.0,216.96,42.04961956]
[1734424172707,7.18278215,217.04,216.98,7.18278215]
[1734424173205,2.3037,217.03,216.99,2.14]
[1734424173708,7.18278215,217.04,216.99,2.14]
[1734424174211,7.18278215,217.02,216.99,2.14]
[1734424174412,2.304,217.01,216.99,2.14]
[1734424175507,7.18278215,217.02,216.96,37.00683741]
[1734424175706,7.18278215,217.0,216.97,5.0077994]
[1734424176011,7.18278215,217.02,216.98,5.0077994]
[1734424176311,7.18278215,217.02,216.96,37.00683741]
[1734424176511,7.18278215,217.02,216.97,5.0091705]
[1734424176711,7.18278215,217.02,216.98,5.0091705]
[1734424176911,2.3042,216.99,216.96,44.35401956]
[1734424177209,2.3042,216.99,216.97,5.00917764]
[1734424177509,2.3042,216.99,216.98,5.00917764]
[1734424177706,2.3042,216.99,216.96,44.35401956]
[1734424178108,2.3033,217.07,216.98,9.48688215]
[1734424178304,7.18278215,217.07,217.01,7.18278215]
[1734424178506,7.18278215,217.07,217.02,2.14]
[1734424178705,7.05189441,217.12,217.02,4.4437]
[1734424178706,7.18278215,217.05,217.02,4.4437]
[1734424179004,7.18278215,217.03,217.01,2.14]
[1734424179205,2.3037,217.04,217.01,2.14]
[1734424179411,7.18278215,217.03,217.01,2.14]
[1734424181213,9.48628215,217.05,217.01,2.14]
[1734424181518,9.48628215,217.05,217.01,4.4439]
[1734424181709,7.18278215,217.03,217.01,2.14]
[1734424182610,9.48628215,217.05,217.01,2.14]
[1734424182805,7.05189441,217.12,217.01,9.32278215]
[1734424183012,7.18278215,217.07,217.03,2.3036]
[1734424183514,7.18278215,217.05,217.03,2.3036]
[1734424183910,7.18278215,217.05,217.01,4.4438]
[1734424184112,7.18278215,217.05,217.02,5.0103321]
[1734424184313,7.18278215,217.05,217.03,5.0103321]
[1734424184511,7.18278215,217.04,217.01,4.4438]
[1734424184814,7.18278215,217.04,217.02,5.01076809]
[1734424185005,7.05189441,217.12,217.0,2.14]
[1734424185204,7.18278215,217.08,217.03,2.3037]
[1734424185415,7.05189441,217.12,217.03,2.3037]
[1734424185416,7.18278215,217.06,217.03,2.3037]
[1734424186114,7.18278215,217.06,217.04,5.01135222]
[1734424186319,7.05189441,217.12,217.05,5.01135222]
[1734424186510,7.18278215,217.06,217.0,2.14]
[1734424186816,7.18278215,217.06,217.01,5.01136153]
[1734424187114,7.18278215,217.06,217.02,5.01136153]
[1734424187315,7.18278215,217.07,217.04,2.3035]
[1734424187514,7.18278215,217.09,217.05,5.01136153]
[1734424187717,7.18278215,217.09,217.03,7.18278215]
[1734424187918,7.18278215,217.09,217.04,5.01173267]
[1734424188118,7.18278215,217.09,217.04,7.15173267]
[1734424188518,7.18278215,217.09,217.06,2.3033]
[1734424189022,7.18278215,217.07,217.04,9.45523267]
[1734424189219,7.18278215,217.07,217.05,5.01173267]
[1734424189421,7.18278215,217.07,217.06,5.01173267]
[1734424189720,7.18278215,217.07,217.04,4.4435]
[1734424189922,7.18278215,217.07,217.05,5.01279674]
[1734424190127,7.18278215,217.07,217.04,2.14]
[1734424190324,7.18278215,217.05,217.0,2.14]
[1734424190521,7.18278215,217.05,217.0,4.4439]
[1734424190819,7.18278215,217.04,217.01,13.03985749]
[1734424191018,7.18278215,217.04,217.02,5.0153298]
[1734424191214,2.3035,217.05,217.03,5.0153298]
[1734424191418,2.3035,217.05,217.04,5.0153298]
[1734424191623,2.3035,217.05,217.0,4.4439]
[1734424191828,7.18278215,217.03,217.01,13.04202078]
[1734424192017,7.18278215,217.03,217.02,5.01616184]
[1734424192223,7.18278215,217.03,217.02,13.04417549]
[1734424192726,9.48628215,217.05,217.02,13.04417549]
[1734424192921,9.48628215,217.05,217.03,5.01616184]
[1734424193121,9.48628215,217.05,217.04,5.01616184]
[1734424193325,7.18278215,217.05,217.0,4.4439]
[1734424193522,7.18278215,217.05,216.97,7.18278215]
[1734424193523,7.18278215,217.03,217.01,13.050884]
[1734424193723,7.18278215,217.02,216.98,2.3041]
[1734424193923,7.18278215,217.02,216.99,13.05474836]
[1734424194121,1.509,217.06,217.0,5.02105706]
[1734424194324,1.509,217.06,216.96,34.86683741]
[1734424194524,3.08,217.05,216.97,13.06093644]
[1734424194827,3.08,217.05,216.98,5.02343709]
[1734424195019,3.08,217.05,216.95,2.3045]
[1734424195020,7.18278215,216.99,216.95,2.3045]
[1734424195222,7.18278215,216.99,216.96,13.0631169]
[1734424195422,7.18278215,216.99,216.97,13.0631169]
[1734424195623,7.18278215,216.99,216.98,5.02427573]
[1734424196226,3.08,217.05,216.96,7.18278215]
[1734424196525,7.18278215,217.04,216.98,7.18278215]
[1734424196717,7.18278215,217.04,216.98,9.32278215]
[1734424196921,7.18278215,217.04,217.01,2.3038]
[1734424197118,1.5382,217.05,216.98,9.32278215]
[1734424197323,10.99518215,217.06,216.98,9.32278215]
[1734424198530,10.99518215,217.06,217.0,7.18278215]
[1734424199323,2.3035,217.05,217.02,2.3037]
[1734424200330,2.3035,217.05,217.01,2.3038]
[1734424201230,7.18278215,217.04,217.01,2.3038]
[1734424201930,7.18278215,217.02,216.96,2.3043]
[1734424202130,1.509,217.06,216.96,2.14]
[1734424202131,7.18278215,217.0,216.96,2.14]
[1734424202726,2.3042,216.98,216.96,2.14]
[1734424202926,2.3042,216.98,216.97,13.06454724]
[1734424203529,9.48698215,216.98,216.97,13.06488326]
[1734424203732,9.48698215,216.98,216.97,5.0249551]
[1734424204331,7.18278215,216.98,216.86,1.6436]
[1734424204525,7.18278215,216.95,216.89,7.18278215]
[1734424204727,3.0291,217.01,216.91,9.48768215]
[1734424204924,7.18278215,216.95,216.91,2.3049]
[1734424205128,9.48738215,216.95,216.91,2.3049]
[1734424205331,7.18278215,216.95,216.9,2.305]
[1734424205532,7.18278215,216.95,216.79,52.72]
[1734424205533,7.18278215,216.93,216.77,15.0744776]
[1734424205735,7.18278215,216.91,216.85,7.18278215]
[1734424206134,2.3053,216.88,216.84,2.3056]
[1734424206431,1.4897,216.96,216.83,2.32]
[1734424206432,7.18278215,216.89,216.83,2.32]
[1734424207834,2.32,216.92,216.83,2.32]
[1734424207835,2.32,216.92,216.84,7.18278215]
[1734424208033,9.48778215,216.91,216.86,9.48828215]
[1734424208233,1.4897,216.96,216.86,7.18278215]
[1734424208234,7.18278215,216.93,216.86,7.18278215]
[1734424208833,2.3049,216.92,216.87,2.3053]
[1734424209432,2.3049,216.92,216.88,7.18278215]
[1734424209634,7.18278215,216.95,216.88,7.18278215]
[1734424210236,7.18278215,216.95,216.9,9.48778215]
[1734424210933,2.3046,216.94,216.9,9.48778215]
[1734424211145,2.3046,216.94,216.9,7.18278215]
[1734424211331,2.3046,216.94,216.89,2.3051]
[1734424212436,2.3047,216.93,216.89,2.3051]
[1734424213737,9.48748215,216.93,216.86,7.18278215]
[1734424213933,38.59072226,217.14,216.92,7.18278215]
[1734424214135,7.18278215,217.09,217.01,7.18278215]
[1734424214335,7.18278215,217.09,217.04,2.3035]
[1734424214530,7.18278215,217.09,217.03,7.18278215]
[1734424215341,9.48578215,217.09,217.04,2.3035]
[1734424215539,4.7486,217.13,217.07,7.18278215]
[1734424215743,7.0513,217.13,217.07,9.48598215]
[1734424215936,5.5029,217.13,217.07,9.48598215]
[1734424216441,2.3027,217.12,217.07,9.48598215]
[1734424217842,9.48548215,217.12,217.07,9.48598215]
[1734424218044,2.3027,217.12,217.07,2.3032]
[1734424221044,3.2002,217.13,217.06,2.32]
[1734424221737,2.3028,217.11,217.06,2.32]
[1734424222245,2.3028,217.11,217.06,4.6233]
[1734424223046,11.20795072,217.11,216.94,4.5954]
[1734424223245,2.3034,217.06,216.95,18.45633573]
[1734424223549,2.32,217.11,216.96,4.92838501]
[1734424223845,2.3031,217.09,216.98,11.20795072]
[1734424224142,2.3031,217.09,216.99,4.92934555]
[1734424224339,13.51085072,217.11,217.04,2.3035]
[1734424224542,11.20795072,217.11,217.04,2.3035]
[1734424224747,11.20795072,217.11,217.0,2.32]
[1734424225245,11.20795072,217.08,217.0,2.32]
[1734424225749,11.20795072,217.11,217.03,2.3036]
[1734424227447,2.3032,217.08,217.03,2.3036]
[1734424228150,11.20795072,217.11,217.02,2.3038]
[1734424228350,11.20795072,217.11,216.99,7.75891772]
[1734424228545,11.20795072,217.11,217.0,4.92868653]
[1734424228751,11.20795072,217.11,216.99,7.75891772]
[1734424228951,11.20795072,217.11,217.0,4.9286711]
[1734424229150,11.20795072,217.11,216.99,7.75891772]
[1734424229555,2.3032,217.08,217.0,4.92766133]
[1734424229754,2.3032,217.08,216.99,7.75891772]
[1734424230054,2.3032,217.08,217.0,4.9279791]
[1734424230249,11.20795072,217.11,217.02,2.3037]
[1734424230550,14.40815072,217.13,216.99,18.96686844]
[1734424230755,14.40815072,217.13,217.05,2.3034]
[1734424231361,2.3028,217.12,217.04,2.32]
[1734424231658,11.20795072,217.17,217.05,11.20795072]
[1734424233059,2.3025,217.14,217.05,11.20795072]
[1734424233353,2.3025,217.14,217.09,2.3029]
[1734424233552,2.3023,217.16,217.09,2.32]
[1734424233955,3.8524,217.22,217.12,2.3026]
[1734424234157,15.06035072,217.22,217.08,11.20795072]
[1734424234350,15.06035072,217.22,217.09,2.32]
[1734424234351,11.20795072,217.19,217.09,2.32]
[1734424234557,2.3024,217.15,217.1,2.3028]
[1734424234754,2.3024,217.15,217.09,2.32]
[1734424234959,11.20795072,217.19,217.09,2.32]
[1734424235157,2.3023,217.16,217.12,2.3027]
[1734424235363,2.3023,217.16,217.09,2.32]
[1734424235661,2.3023,217.16,217.11,2.3027]
[1734424237355,2.3023,217.16,217.12,2.3027]
[1734424237557,11.20795072,217.16,217.07,2.26]
[1734424237757,11.20795072,217.13,217.06,2.26]
[1734424237962,7.17466055,217.09,217.06,2.26]
[1734424239762,7.17466055,217.09,217.03,7.17466055]
[1734424239958,2.3029,217.1,217.05,2.26]
[1734424240460,2.3029,217.1,217.05,4.5634]
[1734424241762,11.20989265,217.13,217.05,2.26]
[1734424241962,0.71392638,217.12,217.05,2.26]
[1734424242262,3.92252638,217.12,217.05,2.26]
[1734424242462,0.71392638,217.11,217.05,2.26]
[1734424243164,3.2086,217.12,217.05,4.5634]
[1734424243361,3.2086,217.12,217.05,2.26]
[1734424244168,1.4876,217.15,217.05,2.26]
[1734424244471,0.71391247,217.14,217.05,2.26]
[1734424244669,2.3027,217.12,217.08,2.3031]
[1734424246567,2.3024,217.15,217.1,2.3028]
[1734424246771,14.41849265,217.19,217.06,11.20989265]
[1734424247068,11.20989265,217.16,217.05,2.26]
[1734424247262,3.01630917,217.15,217.05,2.26]
[1734424247468,2.3025,217.15,217.05,2.26]
[1734424247664,2.3025,217.15,217.05,13.46989265]
[1734424248270,14.41849265,217.19,217.05,13.46989265]
[1734424248471,2.3027,217.12,217.05,13.46989265]
[1734424248668,11.20989265,217.16,217.02,11.20989265]
[1734424248870,3.2086,217.19,217.03,2.26]
[1734424248871,11.20989265,217.13,217.03,2.26]
[1734424249066,2.26,217.15,217.08,2.3031]
[1734424249371,11.20989265,217.16,217.08,2.3031]
[1734424250366,11.20989265,217.13,217.02,11.20989265]
[1734424250670,13.46989265,217.13,217.03,2.26]
[1734424250872,11.20989265,217.1,217.03,2.26]
[1734424251070,11.20989265,217.07,217.0,2.304]
[1734424251768,11.20989265,217.04,216.95,2.26]
[1734424252070,11.20989265,217.04,216.81,15.82179265]
[1734424252071,11.20989265,217.04,216.91,16.74899123]
[1734424252267,1.5894,217.07,216.98,2.3042]
[1734424252268,2.3037,217.03,216.98,2.3042]
[1734424253067,2.3037,217.03,216.95,2.26]
[1734424253464,2.3037,217.03,216.96,4.93177345]
[1734424253667,2.3037,217.03,216.95,2.26]
[1734424254474,2.3037,217.03,216.98,2.3041]
[1734424254773,2.3038,217.02,216.95,2.26]
[1734424254975,2.3038,217.02,216.96,4.93546261]
[1734424255171,2.3038,217.02,216.97,4.93546261]
[1734424255375,2.3038,217.02,216.95,2.26]
[1734424255566,2.3038,217.02,216.96,7.24248039]
[1734424255872,2.3039,217.01,216.97,4.93794651]
[1734424256072,2.3039,217.01,216.96,2.3043]
[1734424256264,2.3039,217.01,216.97,4.93793827]
[1734424256464,2.3039,217.01,216.96,2.3043]
[1734424256673,2.304,217.0,216.97,4.94031897]
[1734424256869,11.20989265,217.03,216.92,2.26]
[1734424257071,11.20989265,217.03,216.93,4.94112741]
[1734424257275,2.3042,216.98,216.94,4.94112741]
[1734424257673,2.3042,216.98,216.93,2.3047]
[1734424257674,2.3042,216.98,216.95,4.94112741]
[1734424257871,2.3042,216.98,216.93,2.3047]
[1734424258078,2.3042,216.98,216.94,4.9448184]
[1734424258377,2.3042,216.98,216.95,4.9448184]
[1734424258572,2.3042,216.98,216.93,2.3047]
[1734424258778,2.3042,216.98,216.94,4.94675163]
[1734424258976,2.3042,216.98,216.93,2.3047]
[1734424259173,2.3041,216.99,216.95,4.94746013]
[1734424259578,2.3041,216.99,216.94,2.3046]
[1734424259778,2.3041,216.99,216.95,4.94635106]
[1734424259972,2.3041,216.99,216.94,2.3046]
[1734424260176,2.304,217.0,216.95,7.25085636]
[1734424260375,2.304,217.0,216.95,2.3045]
[1734424261272,2.26,217.02,216.92,2.26]
[1734424261469,2.3041,216.99,216.93,4.94566458]
[1734424261671,1.5894,217.07,216.94,4.94566458]
[1734424261881,1.5894,217.07,217.0,2.304]
[1734424261882,2.3035,217.05,217.0,2.304]
[1734424262173,2.3035,217.05,216.97,2.26]
[1734424262377,2.3035,217.05,217.01,2.3038]
[1734424262578,15.10259265,217.07,216.97,2.26]
[1734424262774,2.3033,217.07,216.98,4.9444886]
[1734424262977,2.3033,217.07,216.99,4.9444886]
[1734424263177,2.3033,217.07,217.0,4.9444886]
[1734424263377,2.3033,217.07,217.01,4.94158424]
[1734424263574,2.3033,217.07,216.97,13.46989265]
[1734424263779,5.4929,217.09,216.98,4.94151023]
[1734424263981,5.4929,217.09,216.97,13.46989265]
[1734424263982,11.20989265,217.1,216.97,13.46989265]
[1734424264187,11.20989265,217.1,216.98,4.94115658]
[1734424264388,11.20989265,217.1,216.99,4.94115658]
[1734424264587,2.3033,217.07,217.02,2.3037]
[1734424267986,11.20989265,217.1,216.97,13.46989265]
[1734424268188,11.20989265,217.1,216.98,4.9431537]
[1734424268388,3.1431,217.12,216.97,13.46989265]
[1734424268389,11.20989265,217.07,216.99,4.9431537]
[1734424268590,11.20989265,217.04,217.0,4.9431537]
[1734424268891,2.304,217.0,216.96,2.3043]
[1734424269089,11.20989265,217.04,216.97,4.94553172]
[1734424269290,2.3039,217.02,216.96,2.3043]
[1734424269492,11.20989265,217.04,216.97,4.94524043]
[1734424269690,11.20989265,217.04,216.96,2.3043]
[1734424270194,2.304,217.0,216.96,2.3043]
[1734424270888,2.304,217.0,216.91,2.28]
[1734424270889,11.20989265,217.0,216.91,2.28]
[1734424271190,11.20989265,217.0,216.92,4.94565998]
[1734424271392,2.3042,216.98,216.93,7.25035998]
[1734424271689,11.20989265,217.0,216.93,2.3047]
[1734424272390,2.3043,216.97,216.93,2.3047]
[1734424273692,2.3044,216.96,216.92,2.3048]
[1734424275885,2.3043,216.98,216.93,2.3047]
[1734424276088,7.18268994,216.97,216.93,2.3047]
[1734424277395,9.48698994,216.97,216.93,2.3047]
[1734424277695,9.48698994,216.97,216.91,9.46268994]
[1734424277896,7.18268994,216.97,216.91,11.76758994]
[1734424278196,7.18268994,216.97,216.91,9.46268994]
[1734424278598,7.18268994,216.97,216.92,4.93970566]
[1734424278794,2.3046,216.94,216.91,9.46268994]
[1734424278995,2.3046,216.94,216.92,4.93964836]
[1734424279194,7.18268994,216.97,216.91,9.46268994]
[1734424279397,2.3048,216.92,216.91,2.28]
[1734424280896,2.3048,216.92,216.89,9.46268994]
[1734424281091,2.3047,216.93,216.91,7.18268994]
[1734424281495,7.18268994,216.95,216.89,7.18268994]
[1734424281695,2.3049,216.91,216.9,4.9410019]
[1734424281893,7.18268994,216.91,216.85,2.28]
[1734424282098,7.18268994,216.87,216.82,7.18268994]
[1734424282300,7.18268994,216.87,216.83,4.94205831]
[1734424282498,7.18268994,216.87,216.84,4.94205831]
[1734424282692,7.18268994,216.87,216.82,14.92051394]
[1734424282895,2.3057,216.84,216.82,14.92051394]
[1734424283099,7.18268994,216.87,216.82,14.92051394]
[1734424283492,7.18268994,216.87,216.82,7.737824]
[1734424283695,2.3055,216.86,216.82,7.737824]
[1734424283997,7.18268994,216.87,216.82,7.737824]
[1734424284396,2.3056,216.85,216.82,7.737824]
[1734424284592,2.3056,216.85,216.82,2.28]
[1734424284793,7.18268994,216.85,216.82,2.28]
[1734424284995,2.3058,216.83,216.82,2.28]
[1734424285197,7.18268994,216.85,216.82,2.28]
[1734424285501,2.3058,216.83,216.8,14.99412621]
[1734424286003,2.3058,216.83,216.8,5.53143627]
[1734424286503,2.3058,216.83,216.78,2.3063]
[1734424286698,13.51509465,216.88,216.78,2.3063]
[1734424287601,11.23509465,216.85,216.74,1.6225]
[1734424287794,11.23509465,216.85,216.75,7.21054583]
[1734424287998,11.23509465,216.85,216.75,2.28]
[1734424288305,2.3062,216.8,216.75,4.5866]
[1734424291107,2.3062,216.8,216.76,2.28]
[1734424291606,2.3062,216.8,216.77,5.42907244]
[1734424292504,3.1574,216.86,216.77,5.42907244]
[1734424293210,2.3057,216.84,216.79,2.3061]
[1734424293511,3.1574,216.86,216.79,2.3061]
[1734424293711,2.3058,216.84,216.79,2.3061]
[1734424295900,2.3058,216.84,216.77,5.42907244]
[1734424295901,11.23509465,216.88,216.77,5.42907244]
[1734424296111,11.23509465,216.85,216.77,7.62907244]
[1734424296700,2.3062,216.8,216.77,5.42907244]
[1734424296902,2.3062,216.8,216.77,7.62907244]
[1734424298102,2.3062,216.8,216.77,2.2]
[1734424298299,11.23509465,216.85,216.77,2.2]
[1734424298300,2.3062,216.79,216.77,2.2]
[1734424299114,11.23509465,216.82,216.7,11.23509465]
[1734424299402,11.23509465,216.82,216.71,7.12278434]
[1734424299702,2.3062,216.79,216.73,2.3068]
[1734424299905,11.23509465,216.82,216.73,2.3068]
[1734424300207,11.23509465,216.82,216.73,7.9208209]
[1734424301010,2.3064,216.78,216.73,7.9208209]
[1734424301609,2.3064,216.77,216.73,7.9208209]
[1734424302503,11.23509465,216.82,216.73,5.6140209]
[1734424302710,11.23509465,216.82,216.72,2.3069]
[1734424302906,11.23509465,216.76,216.68,2.2]
[1734424303113,2.3069,216.73,216.69,4.92389002]
[1734424303311,11.23509465,216.76,216.68,2.2]
[1734424303515,11.23509465,216.76,216.69,4.92240844]
[1734424303806,11.23509465,216.76,216.68,2.2]
[1734424304112,11.23509465,216.79,216.69,4.9223576]
[1734424304306,2.3065,216.77,216.69,11.23509465]
[1734424305207,11.23509465,216.82,216.7,4.92063468]
[1734424305406,11.23509465,216.82,216.71,4.92063468]
[1734424305612,11.23509465,216.82,216.69,11.23509465]
[1734424306007,7.19467866,216.78,216.74,2.3066]
[1734424306311,7.19467866,216.76,216.7,7.19467866]
[1734424306507,7.19467866,216.76,216.71,4.91795584]
[1734424306706,7.19467866,216.76,216.7,14.42097991]
[1734424306909,7.19467866,216.74,216.71,2.2]
[1734424307111,7.19467866,216.72,216.7,4.91920125]
[1734424308614,2.3071,216.71,216.7,4.91920125]
[1734424309410,7.19467866,216.72,216.7,4.91920125]
[1734424309608,2.2,216.78,216.71,2.3071]
[1734424309609,7.19467866,216.74,216.71,2.3071]
[1734424309912,2.3067,216.75,216.71,2.3071]
[1734424310917,11.24465254,216.82,216.72,2.22]
[1734424311511,2.3062,216.8,216.75,2.3066]
[1734424312309,2.3062,216.8,216.76,2.3065]
[1734424314411,2.3063,216.79,216.75,2.3066]
[1734424314611,2.3063,216.79,216.72,2.22]
[1734424315017,2.3063,216.79,216.75,2.3066]
[1734424315614,2.3063,216.79,216.72,2.22]
[1734424315814,2.3063,216.79,216.76,2.3065]
[1734424316318,2.3063,216.79,216.77,4.9251872]
[1734424316509,2.3063,216.79,216.76,2.3065]
[1734424316711,2.3063,216.79,216.77,4.92517038]
[1734424316908,2.3063,216.79,216.76,2.3065]
[1734424317107,2.3063,216.79,216.77,4.9250507]
[1734424317310,2.3063,216.79,216.76,2.3065]
[1734424317515,2.3063,216.79,216.77,4.9268627]
[1734424317818,2.3063,216.79,216.76,2.3065]
[1734424318018,2.3063,216.79,216.77,4.92694068]
[1734424318215,2.3062,216.79,216.78,4.92884455]
[1734424318418,11.24465254,216.82,216.72,2.22]
[1734424318817,2.3064,216.78,216.74,2.3067]
[1734424319017,2.3064,216.78,216.75,4.92954192]
[1734424319220,2.3064,216.78,216.76,4.92954192]
[1734424319515,2.3064,216.78,216.77,4.92954192]
[1734424320112,2.3062,216.8,216.77,4.92954192]
[1734424320312,2.3062,216.8,216.72,2.22]
[1734424320313,11.24465254,216.82,216.72,2.22]
[1734424320520,11.24465254,216.82,216.73,4.93300551]
[1734424320720,11.24465254,216.82,216.74,4.93300551]
[1734424320924,2.3061,216.8,216.76,2.3065]
[1734424321221,11.24465254,216.82,216.77,4.93300551]
[1734424321523,11.24465254,216.82,216.78,4.93300551]
[1734424321717,11.24465254,216.82,216.72,2.22]
[1734424322124,2.3062,216.79,216.75,2.3066]
[1734424322322,11.24465254,216.82,216.76,4.93286367]
[1734424322622,11.24465254,216.82,216.77,4.93286367]
[1734424322923,2.3062,216.8,216.78,4.93286367]
[1734424323226,11.24465254,216.82,216.79,4.93899531]
[1734424323426,11.24465254,216.82,216.76,2.3065]
[1734424323626,11.24465254,216.82,216.77,4.93899531]
[1734424323825,11.24465254,216.82,216.78,4.93899531]
[1734424324023,11.24465254,216.82,216.79,4.93899531]
[1734424324325,11.24465254,216.82,216.76,2.3065]
[1734424324625,2.3062,216.8,216.76,2.3065]
[1734424324823,2.3062,216.8,216.77,4.94272301]
[1734424325022,11.24465254,216.82,216.78,4.94272301]
[1734424325223,11.24465254,216.82,216.76,2.3065]
[1734424325224,2.3062,216.79,216.76,2.3065]
[1734424325424,2.3062,216.79,216.77,4.94692045]
[1734424325624,2.3062,216.79,216.78,4.94692045]
[1734424327722,2.3062,216.79,216.76,2.3065]
[1734424327918,2.3063,216.78,216.77,4.95322625]
[1734424328118,11.24465254,216.82,216.78,2.3062]
[1734424328325,11.24465254,216.87,216.79,4.95376886]
[1734424328521,11.24465254,216.87,216.8,4.95247502]
[1734424328717,11.24465254,216.87,216.81,4.95247502]
[1734424328923,11.24465254,216.87,216.8,2.3061]
[1734424329320,2.3058,216.84,216.81,7.25612925]
[1734424329522,2.3058,216.84,216.81,2.306]
[1734424330226,9.49706145,216.84,216.81,2.306]
[1734424330829,9.49706145,216.84,216.8,2.3061]
[1734424331029,9.49706145,216.84,216.81,4.94968595]
[1734424331229,9.49706145,216.84,216.82,4.94968595]
[1734424331528,9.49706145,216.84,216.8,2.3061]
[1734424331726,9.49706145,216.84,216.81,4.94860238]
[1734424331928,9.49706145,216.84,216.82,4.94860238]
[1734424332130,9.49706145,216.84,216.8,2.3061]
[1734424332439,9.49706145,216.84,216.81,4.94840825]
[1734424332627,2.3058,216.83,216.82,4.94716143]
[1734424333227,2.306,216.81,216.77,2.3063]
[1734424333428,7.19126145,216.81,216.78,4.94647277]
[1734424333626,12.24693994,216.91,216.77,2.16]
[1734424333831,9.49716145,216.83,216.79,2.3062]
[1734424334027,9.49716145,216.83,216.8,4.94652227]
[1734424334327,9.49716145,216.83,216.81,4.94652227]
[1734424334533,9.49716145,216.83,216.79,7.25345896]
[1734424334929,7.19126145,216.83,216.82,4.94546821]
[1734424335232,9.49696145,216.85,216.82,4.94546821]
[1734424335437,9.49696145,216.85,216.82,2.16]
[1734424335829,2.3054,216.87,216.83,2.3058]